fUSD/lending_fUSD_20260106
["ID","MTS","AMOUNT","RATE_DAILY","PERIOD"]
[400536974,1767702653834,-154.836998,0.000405,7]
[400536975,1767702653845,-151.0,0.000405,120]
[400536976,1767702653856,-5200.0,0.000405,120]
[400536977,1767702653866,-159.245567,0.000405,120]
[400536978,1767702653876,-160.190802,0.000405,120]
[400536980,1767702653885,-159.245567,0.000405,120]
[400536981,1767702653894,-151.0,0.000405,120]
[400536982,1767702653904,-159.245567,0.000405,120]
[400536983,1767702653913,-159.245567,0.000405,120]
[400536984,1767702653924,-151.0,0.000405,120]
[400536985,1767702653933,-151.0,0.000405,120]
[400536986,1767702653943,-151.0,0.000405,120]
[400536987,1767702653952,-219.850624,0.000405,120]
[400536988,1767702653962,-151.0,0.000405,120]
[400536989,1767702653971,-219.850624,0.000405,120]
[400536990,1767702653981,-151.0,0.000405,120]
[400536991,1767702653992,-219.850624,0.000405,120]
[400536992,1767702654002,-219.850624,0.000405,120]
[400536993,1767702654011,-166.053661,0.000405,120]
[400536995,1767702654021,-151.0,0.000405,120]
[400536996,1767702654031,-151.0,0.000405,120]
[400536997,1767702654040,-151.0,0.000405,120]
[400536998,1767702654049,-151.0,0.000405,120]
[400536999,1767702654059,-294.32956,0.000405,120]
[400537000,1767702654068,-151.0,0.000405,120]
[400537001,1767702654077,-190.096438,0.000405,120]
[400537002,1767702654087,-151.0,0.000405,120]
[400537003,1767702654097,-190.096438,0.000405,120]
[400537004,1767702654107,-151.0,0.000405,120]
[400537005,1767702654117,-190.096438,0.000405,120]
[400537006,1767702654126,-151.0,0.000405,120]
[400537007,1767702654136,-562.540497,0.000405,120]
[400537008,1767702654146,-190.096438,0.000405,120]
[400537009,1767702654156,-562.540497,0.000405,120]
[400537010,1767702654166,-562.540497,0.000405,120]
[400537011,1767702654175,-176.93794,0.000405,120]
[400537012,1767702654185,-176.93794,0.000405,120]
[400537013,1767702654194,-49421.34635659,0.000405,120]
[400537014,1767702654204,-682.03,0.00040547,35]
[400537015,1767702654213,-682.03,0.00040547,35]
[400537016,1767702654223,-682.03,0.00040547,35]
[400537017,1767702654233,-682.03,0.00040547,35]
[400537018,1767702654243,-682.03,0.00040547,35]
[400537019,1767702654252,-682.03,0.00040547,35]
[400537021,1767702654261,-682.03,0.00040547,35]
[400537022,1767702654271,-682.03,0.00040547,35]
[400537023,1767702654280,-682.03,0.00040547,35]
[400537024,1767702654289,-1000.0,0.00040548,120]
[400537025,1767702654298,-155.73,0.00040585,120]
[400537026,1767702654307,-1267.79929597,0.0004062,7]
[400537031,1767702666272,600.0,0.00019517,120]
[400537032,1767702666449,300.0,0.00023043,120]
[400537249,1767702775845,236.43,0.00013699,2]
[400537261,1767702777540,500.0,0.00032876,120]
[400537264,1767702777805,500.0,0.00032876,120]
[400537267,1767702778077,500.0,0.00032876,120]
[400537270,1767702778319,500.0,0.00032876,120]
[400537272,1767702778551,500.0,0.00032876,120]
[400537274,1767702778793,500.0,0.00032876,120]
[400537275,1767702779037,500.0,0.00032876,120]
[400537277,1767702779273,500.0,0.00032876,120]
[400537279,1767702779876,500.0,0.00032876,120]
[400537280,1767702780140,500.0,0.00032876,120]
[400537282,1767702780361,500.0,0.00032876,120]
[400537286,1767702780621,500.0,0.00032876,120]
[400537290,1767702780848,500.0,0.00032876,120]
[400537293,1767702781134,500.0,0.00032876,120]
[400537297,1767702781594,451.72,0.00032876,120]
[400538359,1767703021254,500.0,0.00032876,120]
[400538361,1767703021325,500.0,0.00032876,120]
[400538362,1767703021469,500.0,0.00032876,120]
[400538364,1767703021716,500.0,0.00032876,120]
[400538366,1767703021969,500.0,0.00032876,120]
[400539644,1767703381993,338.0,0.000326,120]
[400540131,1767703773093,-151.0,0.00018438,2]
[400540132,1767703773114,-151.0,0.00018438,2]
[400540133,1767703773136,-151.0,0.00018439,2]
[400540134,1767703773157,-151.0,0.00018533,2]
[400540135,1767703773177,-151.0,0.00018533,2]
[400540136,1767703773199,-487.4,0.0001958,2]
[400540137,1767703773220,-236.43,0.00020187,2]
[400540138,1767703773241,-487.4,0.00021473,2]
[400540139,1767703773266,-487.4,0.00023365,2]
[400540140,1767703773288,-487.4,0.00025258,2]
[400540141,1767703773309,-537.60891338,0.00025932,2]
[400540142,1767703773329,-236.43,0.00026676,2]
[400540143,1767703773350,-487.4,0.00027151,2]
[400540144,1767703773371,-487.4,0.00029044,2]
[400540145,1767703773393,-512.0,0.00029877,2]
[400540146,1767703773417,-153.19134262,0.00030936,2]
[400540164,1767703831903,-151.0,0.0001906,2]
[400540165,1767703831913,-151.0,0.00019105,2]
[400540166,1767703831922,-151.0,0.00019339,2]
[400540167,1767703831933,-334.20865738,0.00030936,2]
[400540168,1767703831942,-622.93654622,0.000326,2]
[400540169,1767703832011,-319.62920142,0.000326,2]
[400540170,1767703832020,-512.0,0.00032661,5]
[400540171,1767703832031,-487.4,0.00032829,3]
[400540172,1767703832040,-400.0,0.00032875,2]
[400540173,1767703832049,-300.0,0.00032875,3]
[400540174,1767703832059,-843.47669183,0.00032875,3]
[400540175,1767703832071,-356.52330817,0.00032875,3]
[400540176,1767703832080,-500.0,0.00032876,60]
[400540177,1767703832090,-67.51378114,0.00032876,60]
[400540178,1767703832122,-432.48621886,0.00032876,60]
[400540179,1767703832131,-30.42994039,0.00032876,60]
[400540203,1767703837955,-469.57005961,0.00032876,60]
[400540204,1767703837964,-526.25726891,0.00032876,60]
[400540205,1767703837976,-236.43,0.00033165,2]
[400540206,1767703837986,-268.25395023,0.00033528,2]
[400540207,1767703837999,-1404.0,0.00034507,2]
[400540208,1767703838008,-565.0,0.00034507,2]
[400540209,1767703838018,-2844.12797447,0.00034507,2]
[400540210,1767703838030,-1970.87202553,0.00034507,2]
[400540211,1767703838040,-465.23149996,0.00034722,4]
[400540212,1767703838052,-22.16850004,0.00034722,4]
[400540213,1767703838063,-560.0,0.00035327,2]
[400540214,1767703838073,-916.152,0.0003544,42]
[400540215,1767703838083,-331.14633681,0.00035446,8]
[400540216,1767703838100,-180.85366319,0.00035446,8]
[400540217,1767703838110,-999.0,0.00035613,3]
[400540218,1767703838120,-196.58314639,0.00035616,2]
[400540219,1767703838130,-3998.69690201,0.00035945,2]
[400540220,1767703838142,-267.97702398,0.00035945,2]
[400540221,1767703838174,-3234.24970126,0.00035945,2]
[400540222,1767703838228,-2212.97523654,0.00035945,2]
[400540223,1767703838249,-1185.64109538,0.00035945,2]
[400540224,1767703838282,-1591.52004083,0.00035945,2]
[400540225,1767703838293,-150.54,0.000361,14]
[400540226,1767703838303,-69.09995917,0.000363,6]
[400540413,1767703840101,-81.44004083,0.000363,6]
[400540415,1767703840111,-394.2676485,0.00036615,5]
[400540435,1767703840316,-93.1323515,0.00036615,5]
[400540436,1767703840326,-239.68759378,0.000368,30]
[400540574,1767703845224,-937.70955075,0.000368,30]
[400540575,1767703845296,-631.87285547,0.000368,30]
[400540576,1767703845304,-292.7,0.00037087,30]
[400540577,1767703845314,-200.0,0.00037962,2]
[400540578,1767703845324,-1338.84186728,0.00038151,2]
[400540579,1767703845334,-512.0,0.00038231,11]
[400540580,1767703845343,-463.75503309,0.00038507,5]
[400540581,1767703845354,-23.64496691,0.00038507,5]
[400540582,1767703845364,-7536.95,0.00038589,2]
[400540583,1767703845373,-2000.0,0.000386,2]
[400540584,1767703845382,-1000.0,0.00038784,120]
[400540585,1767703845392,-269.88779834,0.00039188,2]
[400540586,1767703845401,-236.43,0.00039654,2]
[400540587,1767703845411,-324.91,0.00039945,2]
[400540588,1767703845420,-754.0,0.0004,120]
[400540589,1767703845429,-22500.0,0.0004,120]
[400540590,1767703845438,-150.54,0.000401,15]
[400540591,1767703845447,-150.0,0.00040146,2]
[400540592,1767703845460,-150.0,0.00040146,2]
[400540593,1767703845469,-175.84813518,0.00040201,2]
[400540594,1767703845477,-22500.0,0.00040375,120]
[400540595,1767703845487,-168.0,0.00040382,2]
[400540596,1767703845498,-487.4,0.000404,6]
[400540597,1767703845507,-8585.9413,0.0004041,2]
[400540598,1767703845516,-2500.0,0.0004041,2]
[400540599,1767703845528,-166.72267622,0.00040446,28]
[400540600,1767703845538,-233.0,0.00040471,120]
[400540601,1767703845548,-709.79,0.00040489,30]
[400540602,1767703845557,-698.32,0.0004049,30]
[400540603,1767703845566,-689.47,0.00040492,30]
[400540604,1767703845575,-697.76,0.00040495,30]
[400540605,1767703845584,-500.0,0.00040499,30]
[400540606,1767703845593,-500.0,0.00040499,31]
[400540607,1767703845602,-500.0,0.00040499,30]
[400540608,1767703845611,-500.0,0.00040499,31]
[400540609,1767703845619,-151.0,0.00040499,30]
[400540610,1767703845628,-151.0,0.00040499,31]
[400540611,1767703845637,-250.0,0.00040499,30]
[400540612,1767703845646,-250.0,0.00040499,31]
[400540613,1767703845654,-500.0,0.00040499,30]
[400540614,1767703845663,-250.0,0.00040499,30]
[400540615,1767703845672,-500.0,0.00040499,31]
[400540616,1767703845681,-250.0,0.00040499,31]
[400540617,1767703845690,-250.0,0.00040499,30]
[400540618,1767703845699,-250.0,0.00040499,31]
[400540619,1767703845708,-189.27,0.00040499,30]
[400540620,1767703845717,-2572.27805005,0.000405,4]
[400540621,1767703845726,-826.2089063,0.00040507,2]
[400540622,1767703845735,-514.45561001,0.00040509,4]
[400540623,1767703845744,-500.0,0.00040509,120]
[400540624,1767703845754,-3601.18927007,0.0004051,4]
[400540625,1767703845764,-523.07420162,0.00040519,30]
[400540626,1767703845774,-500.0,0.00040519,120]
[400540627,1767703845785,-500.0,0.00040519,120]
[400540628,1767703845796,-500.0,0.00040519,120]
[400540629,1767703845806,-500.0,0.00040519,120]
[400540630,1767703845816,-500.0,0.00040519,2]
[400540631,1767703845825,-500.0,0.00040519,2]
[400540632,1767703845834,-500.0,0.00040519,2]
[400540633,1767703845843,-500.0,0.00040519,2]
[400540634,1767703845852,-624.0,0.0004052,5]
[400540635,1767703845861,-150.0,0.0004052,2]
[400540636,1767703845870,-96484.73868532,0.0004052,2]
[400540637,1767703845882,-534.74828065,0.0004052,2]
[400540638,1767703845903,-902980.51303403,0.0004052,2]
[400540639,1767703845912,-500.0,0.00040546,35]
[400540640,1767703845921,-500.0,0.00040546,35]
[400540641,1767703845930,-151.0,0.00040546,35]
[400540642,1767703845940,-250.0,0.00040546,35]
[400540643,1767703845949,-500.0,0.00040546,35]
[400540644,1767703845958,-250.0,0.00040546,35]
[400540645,1767703845967,-250.0,0.00040546,35]
[400540646,1767703845978,-365.96775979,0.00040547,120]
[400540647,1767703845987,-500.0,0.00040547,35]
[400540648,1767703845995,-500.0,0.00040547,35]
[400540649,1767703846005,-500.0,0.00040547,35]
[400540650,1767703846015,-500.0,0.00040547,35]
[400540651,1767703846024,-207.53,0.0004058,120]
[400540652,1767703846033,-257.29,0.000406,14]
[400540653,1767703846043,-253.0,0.000406,32]
[400540654,1767703846052,-200.0,0.00040619,7]
[400540655,1767703846062,-157.35456451,0.00040619,7]
[400540656,1767703846072,-200.0,0.00040619,7]
[400540657,1767703846082,-500.0,0.00040619,7]
[400540658,1767703846091,-500.0,0.00040619,7]
[400540659,1767703846101,-500.0,0.00040619,7]
[400540660,1767703846110,-500.0,0.00040619,7]
[400540661,1767703846120,-500.0,0.00040619,7]
[400540662,1767703846129,-200.0,0.00040619,7]
[400540663,1767703846138,-200.0,0.00040619,7]
[400540664,1767703846148,-500.0,0.00040619,7]
[400540665,1767703846158,-500.0,0.00040619,7]
[400540666,1767703846167,-500.0,0.00040619,7]
[400540667,1767703846176,-500.0,0.00040619,7]
[400540668,1767703846186,-500.0,0.00040619,7]
[400540669,1767703846195,-500.0,0.00040619,7]
[400540670,1767703846204,-500.0,0.00040619,7]
[400540671,1767703846214,-151.0,0.00040619,7]
[400540672,1767703846223,-500.0,0.00040619,7]
[400540673,1767703846233,-151.0,0.00040619,7]
[400540674,1767703846242,-500.0,0.00040619,7]
[400540675,1767703846252,-500.0,0.00040619,7]
[400540676,1767703846262,-151.0,0.00040619,7]
[400540677,1767703846274,-500.0,0.00040619,7]
[400540678,1767703846284,-500.0,0.00040619,7]
[400540679,1767703846293,-151.0,0.00040619,7]
[400540680,1767703846303,-500.0,0.00040619,7]
[400540681,1767703846312,-500.0,0.00040619,7]
[400540682,1767703846322,-250.0,0.00040619,7]
[400540683,1767703846331,-151.0,0.00040619,7]
[400540684,1767703846340,-500.0,0.00040619,7]
[400540685,1767703846349,-500.0,0.00040619,7]
[400540686,1767703846359,-250.0,0.00040619,7]
[400540687,1767703846368,-500.0,0.00040619,7]
[400540688,1767703846377,-151.0,0.00040619,7]
[400540689,1767703846386,-250.0,0.00040619,7]
[400540690,1767703846396,-151.0,0.00040619,7]
[400540691,1767703846405,-250.0,0.00040619,7]
[400540692,1767703846414,-500.0,0.00040619,7]
[400540694,1767703846424,-151.0,0.00040619,7]
[400540696,1767703846434,-500.0,0.00040619,7]
[400540698,1767703846443,-250.0,0.00040619,7]
[400540699,1767703846455,-500.0,0.00040619,7]
[400540700,1767703846466,-151.0,0.00040619,7]
[400540702,1767703846475,-500.0,0.00040619,7]
[400540704,1767703846485,-250.0,0.00040619,7]
[400540705,1767703846495,-500.0,0.00040619,7]
[400540706,1767703846504,-151.0,0.00040619,7]
[400540707,1767703846513,-500.0,0.00040619,7]
[400540708,1767703846523,-250.0,0.00040619,7]
[400540709,1767703846534,-250.0,0.00040619,7]
[400540710,1767703846544,-151.0,0.00040619,7]
[400540711,1767703846553,-500.0,0.00040619,7]
[400540712,1767703846563,-250.0,0.00040619,7]
[400540713,1767703846573,-250.0,0.00040619,7]
[400540714,1767703846583,-151.0,0.00040619,7]
[400540715,1767703846592,-250.0,0.00040619,7]
[400540716,1767703846602,-151.0,0.00040619,7]
[400540717,1767703846611,-250.0,0.00040619,7]
[400540718,1767703846621,-250.0,0.00040619,7]
[400540719,1767703846630,-8732.20070403,0.0004062,7]
[400540720,1767703846639,-500.0,0.0004062,30]
[400540721,1767703846649,-155.73,0.00040685,120]
[400540722,1767703846658,-152.0,0.000407,120]
[400540723,1767703846668,-6156.0,0.000407,117]
[400540724,1767703846678,-168.0,0.00040716,2]
[400540725,1767703846687,-205.0,0.0004072,120]
[400540726,1767703846697,-152.0,0.00040721,3]
[400540727,1767703846706,-500.0,0.00040749,120]
[400540728,1767703846715,-22500.0,0.0004075,120]
[400540729,1767703846725,-155.73,0.00040785,120]
[400540730,1767703846735,-154.0,0.000408,120]
[400540731,1767703846745,-155.73,0.00040885,120]
[400540732,1767703846755,-297.7382,0.000409,2]
[400540733,1767703846764,-1000.0,0.000409,2]
[400540734,1767703846774,-168.0,0.00040956,2]
[400540735,1767703846783,-155.73,0.00040985,120]
[400540736,1767703846792,-500.0,0.00040986,2]
[400540737,1767703846802,-400.0,0.00040986,60]
[400540738,1767703846812,-7576.55120049,0.00040998,2]
[400540739,1767703846821,-500.0,0.00040999,35]
[400540740,1767703846830,-50000.0,0.00041,41]
[400540741,1767703846840,-150.0,0.00041,120]
[400540742,1767703846849,-175.54025512,0.00041,35]
[400540743,1767703846858,-17969.85510383,0.00041,120]
[400540744,1767703846868,-984.27391068,0.00041,2]
[400540745,1767703846877,-1473.09456201,0.00041,120]
[400540746,1767703846887,-250.0,0.00041,45]
[400540747,1767703846897,-938.65407388,0.00041,120]
[400540748,1767703846906,-250.0,0.00041,45]
[400540749,1767703846916,-250.0,0.00041,45]
[400540750,1767703846924,-320.71414924,0.00041,120]
[400540751,1767703846934,-250.0,0.00041,45]
[400540752,1767703846943,-16784.37544364,0.00041,2]
[400540753,1767703846953,-596.01437914,0.00041,30]
[400540754,1767703846962,-151.0,0.00041,120]
[400540755,1767703846971,-580.0,0.00041,120]
[400540756,1767703846980,-310.0,0.00041,120]
[400540757,1767703846990,-107271.89957648,0.00041,3]
[400540758,1767703846999,-152.39460931,0.00041,4]
[400540759,1767703847009,-282.19986981,0.00041,120]
[400540760,1767703847019,-512.0,0.00041015,14]
[400540761,1767703847028,-1353.9,0.00041041,30]
[400540762,1767703847038,-155.73,0.00041085,120]
[400540763,1767703847048,-168.0,0.00041087,2]
[400540764,1767703847058,-1000.0,0.00041095,120]
[400540765,1767703847067,-1000.0,0.00041095,120]
[400540766,1767703847077,-1000.0,0.00041095,120]
[400540767,1767703847086,-453.30745338,0.00041095,120]
[400540768,1767703847096,-396.20552337,0.00041095,120]
[400540769,1767703847106,-999.0,0.00041095,120]
[400540770,1767703847115,-374.42848679,0.00041095,120]
[400540771,1767703847125,-150.0,0.00041096,10]
[400540772,1767703847135,-514.5,0.00041096,120]
[400540773,1767703847144,-675.77,0.00041096,120]
[400540774,1767703847153,-2000.0,0.00041096,13]
[400540775,1767703847163,-2000.0,0.00041096,13]
[400540777,1767703847172,-2000.0,0.00041096,13]
[400540778,1767703847181,-2000.0,0.00041096,13]
[400540779,1767703847190,-2000.0,0.00041096,13]
[400540780,1767703847199,-2000.0,0.00041096,13]
[400540781,1767703847209,-2000.0,0.00041096,13]
[400540782,1767703847218,-2000.0,0.00041096,13]
[400540783,1767703847227,-2000.0,0.00041096,13]
[400540784,1767703847237,-2000.0,0.00041096,13]
[400540785,1767703847247,-1312.0,0.00041096,13]
[400540786,1767703847258,-254.0,0.00041096,30]
[400540787,1767703847266,-1038.0,0.00041096,52]
[400540788,1767703847275,-1031.15863597,0.00041096,109]
[400540789,1767703847285,-279.07640553,0.00041096,98]
[400540790,1767703847295,-261.91528111,0.00041096,79]
[400540791,1767703847304,-309.76662417,0.00041096,106]
[400540792,1767703847314,-457.4,0.00041096,120]
[400540793,1767703847324,-190.88718106,0.00041096,104]
[400540794,1767703847333,-999.5,0.00041096,102]
[400540795,1767703847343,-831.0,0.00041096,113]
[400540796,1767703847353,-988.0,0.00041096,114]
[400540797,1767703847365,-1191.0,0.00041096,104]
[400540798,1767703847374,-1037.0,0.00041096,76]
[400540799,1767703847383,-925.5,0.00041096,82]
[400540800,1767703847393,-1132.0,0.00041096,69]
[400540801,1767703847402,-1216.5,0.00041096,114]
[400540802,1767703847412,-1066.0,0.00041096,94]
[400540803,1767703847422,-1058.0,0.00041096,51]
[400540804,1767703847431,-877.0,0.00041096,57]
[400540805,1767703847440,-848.5,0.00041096,97]
[400540806,1767703847450,-1164.5,0.00041096,80]
[400540807,1767703847463,-1208.0,0.00041096,83]
[400540808,1767703847473,-904.5,0.00041096,68]
[400540809,1767703847483,-1154.0,0.00041096,67]
[400540810,1767703847492,-1000.0,0.00041096,120]
[400540811,1767703847503,-900.5,0.00041096,96]
[400540812,1767703847512,-1063.0,0.00041096,54]
[400540813,1767703847522,-892.5,0.00041096,85]
[400540814,1767703847533,-1093.0,0.00041096,87]
[400540815,1767703847542,-895.0,0.00041096,70]
[400540816,1767703847552,-838.5,0.00041096,50]
[400540817,1767703847561,-1024.5,0.00041096,64]
[400540818,1767703847571,-930.0,0.00041096,62]
[400540819,1767703847580,-376.08330434,0.00041096,111]
[400540820,1767703847590,-400.0,0.00041096,83]
[400540821,1767703847599,-408.2,0.00041096,120]
[400540822,1767703847608,-332.0,0.00041096,66]
[400540823,1767703847619,-415.0,0.00041096,73]
[400540824,1767703847629,-203.83641046,0.00041096,2]
[400540825,1767703847638,-500.0,0.00041099,120]
[400540826,1767703847647,-1296.78,0.000411,120]
[400540827,1767703847656,-2083.42321633,0.0004111,120]
[400540828,1767703847666,-22500.0,0.00041125,120]
[400540829,1767703847677,-155.73,0.00041185,120]
[400540830,1767703847686,-168.0,0.00041199,2]
[400540831,1767703847696,-614.7328264,0.000412,120]
[400540832,1767703847706,-155.73,0.00041285,120]
[400540833,1767703847716,-500.0,0.000413,120]
[400540834,1767703847726,-257.29,0.000413,14]
[400540835,1767703847735,-168.0,0.00041312,2]
[400540836,1767703847745,-155.73,0.00041385,120]
[400540837,1767703847754,-168.0,0.00041389,2]
[400540838,1767703847763,-152.0,0.000414,120]
[400540839,1767703847772,-500.0,0.000414,120]
[400540840,1767703847781,-292.7,0.00041413,120]
[400540841,1767703847790,-363.15430379,0.0004142,120]
[400540842,1767703847800,-300.0,0.00041425,60]
[400540843,1767703847809,-5161.76005,0.00041463,30]
[400540844,1767703847819,-155.73,0.00041485,120]
[400540845,1767703847828,-154.0,0.000415,120]
[400540846,1767703847837,-174.8211139,0.000415,45]
[400540847,1767703847846,-250.0,0.000415,45]
[400540848,1767703847855,-250.0,0.000415,45]
[400540849,1767703847864,-250.0,0.000415,45]
[400540850,1767703847873,-500.0,0.000415,120]
[400540851,1767703847882,-22500.0,0.000415,120]
[400540852,1767703847890,-500.0,0.00041547,60]
[400540853,1767703847900,-500.0,0.00041547,60]
[400540854,1767703847909,-500.0,0.00041547,60]
[400540855,1767703847918,-168.0,0.0004157,2]
[400540856,1767703847927,-155.73,0.00041585,120]
[400540857,1767703847936,-150.0,0.00041589,30]
[400540858,1767703847945,-502.29606664,0.000416,120]
[400540859,1767703847954,-247.92,0.000416,90]
[400540860,1767703847963,-253.0,0.000416,36]
[400540861,1767703847971,-155.73,0.00041685,120]
[400540862,1767703847980,-168.0,0.00041741,2]
[400540863,1767703847989,-1827.1,0.00041777,5]
[400540864,1767703847998,-155.73,0.00041785,120]
[400540865,1767703848007,-500.0,0.00041799,2]
[400540866,1767703848016,-40024.38272203,0.000418,120]
[400540867,1767703848025,-253.22839954,0.000418,30]
[400540868,1767703848034,-3036.66367252,0.000418,120]
[400540869,1767703848042,-500.0,0.00041806,35]
[400540870,1767703848052,-24423.0,0.00041807,30]
[400540871,1767703848061,-300.0,0.00041808,60]
[400540872,1767703848071,-168.0,0.00041871,2]
[400540873,1767703848080,-13074.05,0.00041875,120]
[400540874,1767703848089,-155.73,0.00041885,120]
[400540875,1767703848099,-5000.0,0.000419,120]
[400540876,1767703848108,-1578.77600998,0.000419,120]
[400540877,1767703848117,-1578.77600998,0.000419,120]
[400540878,1767703848126,-1578.77600998,0.000419,120]
[400540879,1767703848135,-1578.77600998,0.000419,120]
[400540880,1767703848144,-1578.77600998,0.000419,120]
[400540881,1767703848154,-1578.77600998,0.000419,120]
[400540882,1767703848163,-1578.77600998,0.000419,120]
[400540883,1767703848171,-1578.77600998,0.000419,120]
[400540884,1767703848181,-200.0,0.00041918,10]
[400540885,1767703848191,-155.73,0.00041985,120]
[400540886,1767703848200,-500.0,0.0004199,30]
[400540887,1767703848209,-1000.0,0.00041999,120]
[400540888,1767703848218,-500.0,0.00041999,120]
[400540889,1767703848228,-500.0,0.00041999,120]
[400540890,1767703848237,-500.0,0.00041999,120]
[400540891,1767703848246,-500.0,0.00041999,120]
[400540892,1767703848256,-500.0,0.00041999,120]
[400540893,1767703848265,-500.0,0.00041999,120]
[400540894,1767703848274,-500.0,0.00041999,2]
[400540895,1767703848283,-526.89052971,0.00041999,2]
[400540896,1767703848292,-500.0,0.00041999,35]
[400540897,1767703848301,-500.0,0.00041999,35]
[400540898,1767703848316,-500.0,0.00041999,35]
[400540899,1767703848335,-500.0,0.00041999,35]
[400540900,1767703848354,-500.0,0.00041999,35]
[400540901,1767703848369,-50000.0,0.00042,42]
[400540902,1767703848378,-150.0,0.00042,2]
[400540903,1767703848387,-474625.09914207,0.00042,5]
[400540904,1767703848574,-5410.59625491,0.00042,5]
[400540905,1767703848771,-1789.47999987,0.00042,5]
[400540923,1767704147779,10808.0,0.00032877,120]
[400540931,1767704786163,342.0,0.00032877,120]
[400540932,1767704809123,-151.0,0.00017532,2]
[400540933,1767704809144,-3.76528607,0.00017771,2]
[400540938,1767705032008,-151.0,0.00017504,2]
[400540939,1767705032017,-433.54471393,0.00017771,2]
[400540940,1767705032026,-500.55574817,0.00017973,2]
[400540941,1767705032036,-437.31,0.00018706,2]
[400540942,1767705032045,-418.85862963,0.00019642,2]
[400540943,1767705032056,-18.45137037,0.00019642,2]
[400540944,1767705032065,-437.31,0.00020577,2]
[400540945,1767705032074,-174.99202537,0.00021512,2]
[400540946,1767705032117,-262.31797463,0.00021512,2]
[400540947,1767705032126,-435.01637703,0.00022448,2]
[400540948,1767705032137,-2.29362297,0.00022448,2]
[400540949,1767705032147,-437.31,0.00023383,2]
[400540950,1767705032155,-437.31,0.00024318,2]
[400540951,1767705032166,-437.31,0.00025254,2]
[400540952,1767705032175,-437.31,0.00026189,2]
[400540953,1767705032184,-161.07357845,0.00027024,53]
[400540954,1767705032194,-437.31,0.00027124,2]
[400540955,1767705032203,-437.31,0.0002806,2]
[400540956,1767705032212,-994.65,0.00028459,2]
[400540957,1767705032222,-437.31,0.00028995,2]
[400540958,1767705032231,-161.07357845,0.00029202,59]
[400540959,1767705032240,-166.66,0.00029218,30]
[400540960,1767705032250,-166.66,0.00029833,30]
[400540961,1767705032259,-437.31,0.0002993,2]
[400540962,1767705032268,-166.66,0.00030448,30]
[400540963,1767705032276,-437.31,0.00030865,2]
[400540964,1767705032286,-158.46668356,0.00031033,2]
[400540965,1767705032295,-441.72874075,0.00031062,2]
[400540969,1767705032653,-500.0,0.00031062,2]
[400540970,1767705032666,-58.27125925,0.00031062,2]
[400540971,1767705032676,-166.66,0.00031063,30]
[400540972,1767705032685,-118.31118871,0.0003138,64]
[400540973,1767705032700,-42.76238974,0.0003138,64]
[400540974,1767705032710,-166.66,0.00031678,30]
[400540975,1767705032719,-437.31,0.00031801,2]
[400540976,1767705032728,-41.98761026,0.00032227,2]